[Event "WJCC U20 Open 2019"]
[Site "New Delhi"]
[Date "2019.10.21"]
[Round "7.16"]
[White "Aditya Mittal"]
[Black "Audi Ameya"]
[Result "0-1"]
[ECO "A80"]
[WhiteElo "2430"]
[BlackElo "2336"]
[Annotator "NA"]
[PlyCount "92"]
[EventDate "2019.10.15"]
[EventType "swiss"]
[EventCountry "IND"]
[SourceTitle "playchess.com"]
[Source "ChessBase"]
[SourceQuality "1"]
[TimeControl "40/5400+30:1800+30"]

1. d4 {[%emt 0:00:00]} f5 {[%emt 0:00:00]} 2. Nc3 {[%emt 0:06:00]} Nf6 {[%emt 0:00:00]} 3. Bg5 {[%emt 0:00:47]} d5 {[%emt 0:00:00]} 4. Bxf6 {[%emt 0:03:20]} exf6 {[%emt 0:00:00]} 5. e3 {[%emt 0:00:16]} Be6 {[%emt 0:00:17]} 6. Nge2 {[%emt 0:02:43]} Qd7 {[%emt 0:08:57]} 7. g3 {[%emt 0:15:09]} Bd6 {[%emt 0:08:31]} 8. Nf4 {[%emt 0:05:39]} c6 {[%emt 0:00:52]} 9. Nxe6 {[%emt 0:02:08]} Qxe6 {[%emt 0:00:03]} 10. Qf3 {[%emt 0:00:18]} Nd7 {[%emt 0:03:35]} 11. Bd3 {[%emt 0:04:59]} g6 {[%emt 0:00:11]} 12. Ne2 {[%emt 0:00:22]} Qe7 {[%emt 0:19:00]} 13. h3 {[%emt 0:03:41]} O-O-O {[%emt 0:10:18]} 14. g4 {[%emt 0:04:51]} fxg4 {[%emt 0:10:37]} 15. hxg4 {[%emt 0:00:19]} Rhg8 {[%emt 0:04:23]} 16. O-O-O {[%emt 0:05:53]} Rg7 {[%emt 0:00:02]} 17. Kb1 {[%emt 0:00:54]} Nb6 {[%emt 0:04:27]} 18. c3 {[%emt 0:05:31]} a5 {[%emt 0:01:19]} 19. Rde1 {[%emt 0:09:12]} a4 {[%emt 0:01:20]} 20. Ng3 {[%emt 0:00:35]} Rf7 {[%emt 0:04:31]} 21. e4 {[%emt 0:06:11]} Qc7 {[%emt 0:00:01]} 22. exd5 {[%emt 0:01:59]} Nxd5 {[%emt 0:04:18]} 23. Ne4 {[%emt 0:03:44]} a3 {[%emt 0:00:22]} 24. c4 {[%emt 0:01:49]} Nf4 {[%emt 0:12:30]} 25. c5 {[%emt 0:01:21]} Bf8 {[%emt 0:00:38]} 26. Bc2 {[%emt 0:07:21]} axb2 {[%emt 0:01:27]} 27. Qa3 {[%emt 0:02:23]} Kb8 {[%emt 0:00:42]} 28. Re3 {[%emt 0:01:56]} Nd5 {[%emt 0:02:00]} 29. Rb3 {[%emt 0:00:16]} Re8 {[%emt 0:01:33]} 30. Kxb2 {[%emt 0:01:56]} Qf4 {[%emt 0:00:39]} 31. Qa5 {[%emt 0:00:52]} f5 {[%emt 0:00:42]} 32. Ra3 {[%emt 0:01:00]} Nc7 {[%emt 0:00:11]} 33. gxf5 {[%emt 0:01:21]} Rxe4 {[%emt 0:01:09]} 34. fxg6 {[%emt 0:00:50]} hxg6 {[%emt 0:00:08]} 35. Qa7+ {[%emt 0:01:17]} Kc8 {[%emt 0:00:02]} 36. Rb3 {[%emt 0:00:18]} Re2 {[%emt 0:01:25]} 37. Rxb7 {[%emt 0:00:38]} Rxc2+ {[%emt 0:00:45]} 38. Kb1 {[%emt 0:00:34]} Re2 {[%emt 0:00:59]} 39. Rd1 {[%emt 0:00:29]} Bg7 {[%emt 0:00:23]} 40. f3 {[%emt 0:00:33]} Qf5+ {[%emt 0:01:08]} 41. Ka1 {[%emt 0:30:08]} Bxd4+ {[%emt 0:02:22]} 42. Rxd4 {[%emt 0:00:00]} Re1+ {[%emt 0:00:02]} 43. Kb2 {[%emt 0:00:00]} Qb1+ {[%emt 0:00:03]} 44. Ka3 {[%emt 0:00:00]} Rxf3+ {[%emt 0:00:22]} 45. Rb3 {[%emt 0:00:00]} Rxb3+ {[%emt 0:00:06]} 46. axb3 {[%emt 0:00:00]} Nb5+ {[%emt 0:00:30]} 0-1

[Event "WJCC U20 Open 2019"]
[Site "New Delhi"]
[Date "2019.10.21"]
[Round "7.17"]
[White "Agmanov, Zhandos"]
[Black "Neelash Saha"]
[Result "1-0"]
[ECO "B47"]
[WhiteElo "2403"]
[BlackElo "2334"]
[Annotator "NA"]
[PlyCount "63"]
[EventDate "2019.10.15"]
[EventType "swiss"]
[EventCountry "IND"]
[SourceTitle "playchess.com"]
[Source "ChessBase"]
[SourceQuality "1"]
[TimeControl "40/5400+30:1800+30"]

1. e4 {[%emt 0:00:26]} c5 {[%emt 0:00:00]} 2. Nf3 {[%emt 0:01:10]} e6 {[%emt 0:00:00]} 3. d4 {[%emt 0:00:59]} cxd4 {[%emt 0:00:04]} 4. Nxd4 {[%emt 0:00:45]} Nc6 {[%emt 0:00:05]} 5. Nc3 {[%emt 0:01:27]} Qc7 {[%emt 0:00:08]} 6. Qd3 {[%emt 0:00:19]} a6 {[%emt 0:03:20]} 7. Nxc6 {[%emt 0:00:06]} Qxc6 {[%emt 0:07:07]} 8. Qg3 {[%emt 0:00:49]} Nf6 {[%emt 0:01:41]} 9. Bd3 {[%emt 0:02:44]} d6 {[%emt 0:03:04]} 10. a4 {[%emt 0:10:54]} Bd7 {[%emt 0:12:35]} 11. O-O {[%emt 0:11:29]} Qc7 {[%emt 0:01:51]} 12. a5 {[%emt 0:04:36]} Bc6 {[%emt 0:01:13]} 13. Be3 {[%emt 0:05:08]} h5 {[%emt 0:00:10]} 14. f3 {[%emt 0:04:22]} h4 {[%emt 0:01:25]} 15. Qf2 {[%emt 0:00:06]} d5 {[%emt 0:04:17]} 16. exd5 {[%emt 0:12:52]} Bxd5 {[%emt 0:04:37]} 17. Bb6 {[%emt 0:01:21]} Qb8 {[%emt 0:01:26]} 18. Qd4 {[%emt 0:16:40]} Bc6 {[%emt 0:03:26]} 19. Rad1 {[%emt 0:04:55]} Rh5 {[%emt 0:08:58]} 20. Bc4 {[%emt 0:12:41]} Nd7 {[%emt 0:03:10]} 21. Qg4 {[%emt 0:01:35]} Qe5 {[%emt 0:17:07]} 22. Rfe1 {[%emt 0:00:32]} Qf5 {[%emt 0:01:35]} 23. Nd5 {[%emt 0:03:44]} Bxd5 {[%emt 0:00:52]} 24. Bxd5 {[%emt 0:00:27]} Nxb6 {[%emt 0:10:15]} 25. axb6 {[%emt 0:00:01]} Bc5+ {[%emt 0:01:23]} 26. Kh1 {[%emt 0:00:01]} Rb8 {[%emt 0:00:19]} 27. Qxg7 {[%emt 0:01:06]} Qg5 {[%emt 0:01:53]} 28. Qc3 {[%emt 0:00:55]} Qe7 {[%emt 0:00:32]} 29. Bb3 {[%emt 0:01:14]} Bxb6 {[%emt 0:03:02]} 30. Qg7 {[%emt 0:00:02]} Bc5 {[%emt 0:02:56]} 31. Rxe6 {[%emt 0:00:29]} fxe6 {[%emt 0:00:48]} 32. Qg8+ {[%emt 0:00:06]} 1-0

[Event "WJCC U20 Open 2019"]
[Site "New Delhi"]
[Date "2019.10.21"]
[Round "7.18"]
[White "Pogosyan, Stefan"]
[Black "Percivaldi, Martin"]
[Result "1-0"]
[ECO "A22"]
[WhiteElo "2364"]
[BlackElo "2391"]
[Annotator "NA"]
[PlyCount "73"]
[EventDate "2019.10.15"]
[EventType "swiss"]
[EventCountry "IND"]
[SourceTitle "playchess.com"]
[Source "ChessBase"]
[SourceQuality "1"]
[TimeControl "40/5400+30:1800+30"]

1. c4 {[%emt 0:00:00]} e5 {[%emt 0:02:13]} 2. Nc3 {[%emt 0:00:17]} Nf6 {[%emt 0:00:15]} 3. g3 {[%emt 0:00:12]} c6 {[%emt 0:00:33]} 4. d4 {[%emt 0:06:23]} e4 {[%emt 0:00:45]} 5. Bg5 {[%emt 0:04:17]} Bb4 {[%emt 0:02:38]} 6. Qb3 {[%emt 0:03:54]} Bxc3+ {[%emt 0:03:46]} 7. Qxc3 {[%emt 0:02:24]} O-O {[%emt 0:03:32]} 8. Bg2 {[%emt 0:01:48]} d5 {[%emt 0:00:51]} 9. f3 {[%emt 0:09:29]} exf3 {[%emt 0:10:18]} 10. Nxf3 {[%emt 0:00:06]} Be6 {[%emt 0:00:21]} 11. Ne5 {[%emt 0:05:47]} h6 {[%emt 0:04:09]} 12. Bf4 {[%emt 0:03:54]} Nbd7 {[%emt 0:03:12]} 13. O-O {[%emt 0:01:11]} Nxe5 {[%emt 0:03:00]} 14. Bxe5 {[%emt 0:01:08]} Ne4 {[%emt 0:00:15]} 15. Bxe4 {[%emt 0:03:12]} dxe4 {[%emt 0:05:07]} 16. d5 {[%emt 0:01:57]} cxd5 {[%emt 0:23:19]} 17. Bxg7 {[%emt 0:00:47]} d4 {[%emt 0:00:08]} 18. Bxd4 {[%emt 0:00:34]} f5 {[%emt 0:00:08]} 19. b3 {[%emt 0:03:02]} Qg5 {[%emt 0:03:59]} 20. Rf4 {[%emt 0:01:02]} Rf7 {[%emt 0:02:40]} 21. Qa5 {[%emt 0:02:42]} Qg6 22. Raf1 {[%emt 0:01:57]} a6 {[%emt 0:05:20]} 23. Rh4 {[%emt 0:09:57]} Re8 {[%emt 0:03:11]} 24. Qe5 {[%emt 0:05:10]} Rh7 {[%emt 0:00:40]} 25. e3 {[%emt 0:04:13]} Bc8 {[%emt 0:04:41]} 26. Qc5 {[%emt 0:01:44]} Be6 {[%emt 0:02:13]} 27. a4 {[%emt 0:01:33]} Rc8 {[%emt 0:01:57]} 28. Qd6 {[%emt 0:02:03]} Rd7 {[%emt 0:01:28]} 29. Qe5 {[%emt 0:00:33]} Rh7 {[%emt 0:00:06]} 30. Rg4 fxg4 {[%emt 0:00:43]} 31. Rf6 {[%emt 0:06:25]} Qe8 {[%emt 0:04:32]} 32. Rxe6 {[%emt 0:00:46]} Qf7 {[%emt 0:03:16]} 33. Rf6 {[%emt 0:04:11]} Qe8 {[%emt 0:01:28]} 34. Qd5+ {[%emt 0:00:19]} Rf7 {[%emt 0:00:07]} 35. Rg6+ {[%emt 0:00:31]} Kf8 {[%emt 0:00:38]} 36. Rxh6 {[%emt 0:00:24]} Qd7 {[%emt 0:00:51]} 37. Qxd7 {[%emt 0:00:35]} 1-0

[Event "WJCC U20 Open 2019"]
[Site "New Delhi"]
[Date "2019.10.21"]
[Round "7.19"]
[White "Mendonca, Leon Luke"]
[Black "Pranav, V."]
[Result "1-0"]
[ECO "E48"]
[WhiteElo "2388"]
[BlackElo "2308"]
[Annotator "NA"]
[PlyCount "109"]
[EventDate "2019.10.15"]
[EventType "swiss"]
[EventCountry "IND"]
[SourceTitle "playchess.com"]
[Source "ChessBase"]
[SourceQuality "1"]
[TimeControl "40/5400+30:1800+30"]

1. d4 {[%emt 0:00:00]} Nf6 {[%emt 0:00:00]} 2. c4 {[%emt 0:00:00]} e6 {[%emt 0:00:00]} 3. Nc3 {[%emt 0:00:04]} Bb4 {[%emt 0:00:08]} 4. e3 {[%emt 0:00:14]} O-O {[%emt 0:00:10]} 5. Bd3 {[%emt 0:00:28]} d5 {[%emt 0:01:06]} 6. a3 {[%emt 0:00:30]} Bd6 {[%emt 0:03:36]} 7. c5 {[%emt 0:07:24]} Be7 {[%emt 0:00:09]} 8. b4 {[%emt 0:00:41]} Nbd7 {[%emt 0:05:16]} 9. f4 {[%emt 0:02:37]} c6 {[%emt 0:05:50]} 10. Nf3 {[%emt 0:01:14]} a5 {[%emt 0:00:29]} 11. Bd2 {[%emt 0:03:24]} b6 {[%emt 0:03:16]} 12. O-O {[%emt 0:05:22]} Ba6 {[%emt 0:08:29]} 13. Bxa6 {[%emt 0:15:55]} Rxa6 {[%emt 0:00:20]} 14. b5 {[%emt 0:04:08]} cxb5 {[%emt 0:00:26]} 15. c6 {[%emt 0:01:55]} Nb8 {[%emt 0:00:08]} 16. Ne5 {[%emt 0:00:09]} Ra8 {[%emt 0:04:57]} 17. Nxb5 {[%emt 0:02:51]} Na6 {[%emt 0:00:14]} 18. Qe2 {[%emt 0:05:39]} Nc7 {[%emt 0:02:50]} 19. Rfc1 {[%emt 0:04:55]} Bd6 {[%emt 0:06:10]} 20. Nxd6 {[%emt 0:12:33]} Qxd6 {[%emt 0:00:10]} 21. a4 {[%emt 0:02:42]} Rfc8 {[%emt 0:07:16]} 22. Rcb1 {[%emt 0:04:48]} Ra6 {[%emt 0:03:28]} 23. Bc1 {[%emt 0:02:12]} Qd8 {[%emt 0:11:50]} 24. Ba3 {[%emt 0:01:16]} Ne4 {[%emt 0:00:34]} 25. Rb3 {[%emt 0:08:40]} Qe8 {[%emt 0:01:21]} 26. Rc1 {[%emt 0:01:31]} f6 {[%emt 0:04:59]} 27. Nd7 {[%emt 0:00:37]} Rd8 {[%emt 0:01:14]} 28. Rb2 {[%emt 0:04:01]} h6 {[%emt 0:10:05]} 29. Nxb6 {[%emt 0:03:31]} Nd6 {[%emt 0:00:08]} 30. Bxd6 {[%emt 0:00:59]} Rxd6 {[%emt 0:00:06]} 31. Qc2 {[%emt 0:02:08]} e5 {[%emt 0:01:59]} 32. dxe5 {[%emt 0:01:20]} fxe5 {[%emt 0:00:05]} 33. Qc5 {[%emt 0:01:36]} exf4 {[%emt 0:00:12]} 34. exf4 {[%emt 0:00:06]} d4 {[%emt 0:00:51]} 35. Rbb1 {[%emt 0:01:10]} Qe3+ {[%emt 0:01:20]} 36. Kh1 {[%emt 0:00:07]} Re6 {[%emt 0:00:10]} 37. Nd5 {[%emt 0:00:39]} Qd2 {[%emt 0:02:30]} 38. Nxc7 {[%emt 0:00:55]} Raxc6 {[%emt 0:00:20]} 39. Nxe6 {[%emt 0:00:33]} Rxc5 {[%emt 0:00:06]} 40. Nxc5 {[%emt 0:00:02]} Qxf4 {[%emt 0:00:07]} 41. Rd1 {[%emt 0:02:24]} d3 {[%emt 0:00:38]} 42. Nxd3 {[%emt 0:00:19]} Qxa4 {[%emt 0:00:06]} 43. Ne5 {[%emt 0:00:17]} Qe4 {[%emt 0:00:17]} 44. Nf3 {[%emt 0:00:04]} a4 {[%emt 0:00:11]} 45. Ra1 {[%emt 0:00:03]} Qc2 {[%emt 0:00:38]} 46. Rd2 {[%emt 0:00:06]} Qc3 {[%emt 0:00:25]} 47. Rda2 {[%emt 0:00:05]} Kh7 {[%emt 0:00:07]} 48. Rxa4 {[%emt 0:00:03]} g5 {[%emt 0:00:21]} 49. Ra6 {[%emt 0:00:41]} Qe3 {[%emt 0:00:19]} 50. Re1 {[%emt 0:00:17]} Qc5 {[%emt 0:00:08]} 51. Rd1 {[%emt 0:00:42]} Qb5 {[%emt 0:00:08]} 52. Rdd6 {[%emt 0:00:19]} Kg7 {[%emt 0:00:06]} 53. Ra7+ {[%emt 0:00:15]} Kg8 {[%emt 0:00:06]} 54. Rd8+ {[%emt 0:00:05]} Qe8 {[%emt 0:00:03]} 55. Rxe8# {[%emt 0:00:06]} 1-0

[Event "WJCC U20 Open 2019"]
[Site "New Delhi"]
[Date "2019.10.21"]
[Round "7.23"]
[White "Vykouk, Jan"]
[Black "Zlatin, Alexander"]
[Result "0-1"]
[ECO "A05"]
[WhiteElo "2468"]
[BlackElo "2263"]
[Annotator "ChessBase"]
[PlyCount "124"]
[EventDate "2019.10.15"]
[EventType "swiss"]
[EventCountry "IND"]
[SourceTitle "playchess.com"]
[Source "ChessBase"]
[SourceQuality "1"]
[TimeControl "40/5400+30:1800+30"]

1. Nf3 {[%emt 0:00:00]} Nf6 {[%emt 0:00:00]} 2. c4 {[%emt 0:00:00]} c6 {[%emt 0:02:55]} 3. g3 {[%emt 0:01:10]} d5 {[%emt 0:00:50]} 4. b3 {[%emt 0:00:12]} e6 {[%emt 0:09:55]} 5. Bg2 {[%emt 0:00:27]} Nbd7 {[%emt 0:00:14]} 6. Bb2 {[%emt 0:00:21]} Bd6 {[%emt 0:00:19]} 7. O-O {[%emt 0:00:30]} O-O {[%emt 0:00:43]} 8. d3 {[%emt 0:00:11]} Re8 {[%emt 0:02:48]} 9. Nbd2 {[%emt 0:00:48]} e5 {[%emt 0:01:45]} 10. Qc2 {[%emt 0:05:50]} a5 {[%emt 0:06:06]} 11. cxd5 {[%emt 0:02:04]} cxd5 {[%emt 0:01:39]} 12. Rac1 {[%emt 0:00:07]} Qe7 {[%emt 0:10:27]} 13. e4 {[%emt 0:00:30]} dxe4 {[%emt 0:01:09]} 14. dxe4 {[%emt 0:00:29]} b5 {[%emt 0:06:20]} 15. Nh4 {[%emt 0:02:06]} g6 {[%emt 0:02:14]} 16. Rfd1 {[%emt 0:03:08]} Bb7 {[%emt 0:05:27]} 17. Nf1 {[%emt 0:00:10]} Bc5 {[%emt 0:01:44]} 18. Qe2 {[%emt 0:04:44]} Qe6 {[%emt 0:06:24]} 19. Rc2 {[%emt 0:21:23]} Qb6 {[%emt 0:01:03]} 20. Bc1 {[%emt 0:00:05]} Rac8 {[%emt 0:03:31]} 21. Be3 {[%emt 0:00:55]} Bxe3 {[%emt 0:02:08]} 22. Nxe3 {[%emt 0:00:06]} Rxc2 {[%emt 0:00:58]} 23. Qxc2 {[%emt 0:00:06]} Nc5 {[%emt 0:02:57]} 24. Nd5 {[%emt 0:02:25]} Bxd5 {[%emt 0:00:50]} 25. exd5 {[%emt 0:00:07]} e4 {[%emt 0:01:03]} 26. Qe2 {[%emt 0:02:37]} Nd3 {[%emt 0:04:19]} 27. Bf1 {[%emt 0:19:44]} Rd8 {[%emt 0:03:59]} 28. Qc2 {[%emt 0:08:46]} Nxd5 {[%emt 0:01:30]} 29. a3 {[%emt 0:00:38]} Ne3 {[%emt 0:09:23]} 30. fxe3 {[%emt 0:00:04]} Qxe3+ {[%emt 0:00:03]} 31. Kh1 {[%emt 0:00:05]} Nf2+ {[%emt 0:00:11]} 32. Qxf2 {[%emt 0:00:04]} Qxf2 {[%emt 0:00:03]} 33. Rxd8+ {[%emt 0:00:05]} Kg7 {[%emt 0:00:02]} 34. Bxb5 {[%emt 0:00:12]} e3 {[%emt 0:02:11]} 35. Re8 {[%emt 0:02:41]} g5 {[%emt 0:00:19]} 36. Ng2 {[%emt 0:05:03]} Qf5 {[%emt 0:00:39]} 37. Rxe3 {[%emt 0:01:11]} Qxb5 {[%emt 0:00:03]} 38. h3 {[%emt 0:00:26]} Qc5 {[%emt 0:00:29]} 39. a4 {[%emt 0:00:40]} f5 {[%emt 0:00:33]} 40. Kh2 {[%emt 0:00:22]} Kf6 {[%emt 0:00:41]} 41. Kh1 {[%emt 0:31:23]} Qc2 {[%emt 0:30:41]} 42. Kg1 {[%emt 0:00:37]} Qd1+ {[%emt 0:01:23]} 43. Kf2 {[%emt 0:01:06]} h6 {[%emt 0:01:17]} 44. h4 {[%emt 0:02:19]} Qd4 {[%emt 0:00:42]} 45. hxg5+ {[%emt 0:00:07]} hxg5 {[%emt 0:00:20]} 46. Ke2 {[%emt 0:01:05]} Kg6 {[%emt 0:00:47]} 47. Ne1 {[%emt 0:05:45]} Qb2+ {[%emt 0:01:53]} 48. Kf1 {[%emt 0:00:25]} Qd2 {[%emt 0:03:43]} 49. Rd3 {[%emt 0:00:40]} Qc1 {[%emt 0:01:24]} 50. Rf3 {[%emt 0:00:22]} f4 {[%emt 0:01:52]} 51. gxf4 {[%emt 0:00:06]} gxf4 {[%emt 0:00:09]} 52. Ke2 {[%emt 0:07:05]} Kf5 {[%emt 0:00:55]} 53. Ng2 {[%emt 0:02:02]} Qc2+ {[%emt 0:00:13]} 54. Kf1 {[%emt 0:00:05]} Qd1+ {[%emt 0:00:18]} 55. Kf2 {[%emt 0:00:52]} Qd2+ {[%emt 0:00:05]} 56. Kg1 {[%emt 0:00:00]} Kg4 {[%emt 0:00:00]} 57. Rf2 {[%emt 0:00:00]} Qc1+ {[%emt 0:00:00]} 58. Rf1 {[%emt 0:00:00]} Qc5+ {[%emt 0:00:00]} 59. Kh2 {[%emt 0:00:00]} Qh5+ {[%emt 0:00:00]} 60. Kg1 {[%emt 0:00:00]} Kg3 {[%emt 0:00:00]} 61. Rf2 {[%emt 0:00:00]} Qd1+ {[%emt 0:00:00]} 62. Rf1 {[%emt 0:00:00]} Qd4+ {[%emt 0:00:00]} 0-1

[Event "WJCC U20 Open 2019"]
[Site "New Delhi"]
[Date "2019.10.21"]
[Round "7.24"]
[White "Rahul Srivatshav P"]
[Black "Kukelko, Alexey"]
[Result "1-0"]
[ECO "D45"]
[WhiteElo "2460"]
[BlackElo "2342"]
[Annotator "ChessBase"]
[PlyCount "80"]
[EventDate "2019.10.15"]
[EventType "swiss"]
[EventCountry "IND"]
[SourceTitle "playchess.com"]
[Source "ChessBase"]
[SourceQuality "1"]
[TimeControl "40/5400+30:1800+30"]

1. d4 {[%emt 0:00:00]} d5 {[%emt 0:00:00]} 2. c4 {[%emt 0:00:26]} e6 {[%emt 0:00:13]} 3. Nc3 {[%emt 0:00:06]} c6 {[%emt 0:00:11]} 4. e3 {[%emt 0:00:06]} Nf6 {[%emt 0:01:00]} 5. Nf3 {[%emt 0:00:05]} Nbd7 {[%emt 0:00:12]} 6. Qc2 {[%emt 0:00:05]} Bd6 {[%emt 0:00:21]} 7. Bd3 {[%emt 0:00:06]} O-O {[%emt 0:09:41]} 8. O-O {[%emt 0:00:26]} dxc4 {[%emt 0:07:08]} 9. Bxc4 {[%emt 0:00:49]} e5 {[%emt 0:01:37]} 10. h3 {[%emt 0:07:41]} b5 {[%emt 0:14:33]} 11. Bd3 {[%emt 0:12:42]} Bb7 {[%emt 0:02:10]} 12. dxe5 {[%emt 0:00:29]} Nxe5 {[%emt 0:00:17]} 13. Nxe5 {[%emt 0:00:17]} Bxe5 {[%emt 0:00:04]} 14. e4 {[%emt 0:00:10]} Re8 {[%emt 0:06:55]} 15. Be3 {[%emt 0:19:59]} Qe7 {[%emt 0:13:43]} 16. Ne2 {[%emt 0:08:52]} Bc7 {[%emt 0:01:36]} 17. Bc5 {[%emt 0:05:13]} Qe5 {[%emt 0:00:39]} 18. f4 {[%emt 0:00:19]} Qxc5+ {[%emt 0:00:04]} 19. Qxc5 {[%emt 0:00:04]} Bb6 {[%emt 0:00:03]} 20. Qxb6 {[%emt 0:00:13]} axb6 {[%emt 0:00:04]} 21. e5 {[%emt 0:00:20]} Nd7 {[%emt 0:11:20]} 22. Nd4 {[%emt 0:10:19]} Rad8 23. Rad1 {[%emt 0:01:13]} Nc5 {[%emt 0:14:12]} 24. Be2 {[%emt 0:07:11]} Na4 {[%emt 0:03:17]} 25. Nf5 {[%emt 0:09:52]} Nxb2 26. Rb1 {[%emt 0:02:18]} Na4 {[%emt 0:04:15]} 27. Nd6 {[%emt 0:00:40]} Re7 {[%emt 0:00:02]} 28. Bf3 {[%emt 0:00:38]} Ba8 {[%emt 0:00:36]} 29. Rbc1 {[%emt 0:05:14]} Nc5 {[%emt 0:01:06]} 30. Rfd1 {[%emt 0:00:05]} Red7 {[%emt 0:02:54]} 31. Bg4 {[%emt 0:00:49]} Ne6 {[%emt 0:02:04]} 32. f5 {[%emt 0:00:11]} Nc7 {[%emt 0:00:05]} 33. f6 {[%emt 0:01:40]} Ne6 {[%emt 0:00:03]} 34. fxg7 {[%emt 0:01:34]} Kxg7 {[%emt 0:02:08]} 35. Rc3 {[%emt 0:00:05]} h5 {[%emt 0:04:21]} 36. Bxh5 {[%emt 0:00:58]} c5 {[%emt 0:00:26]} 37. Rf1 {[%emt 0:00:16]} Rf8 {[%emt 0:00:26]} 38. Rg3+ {[%emt 0:00:31]} Kh7 {[%emt 0:00:37]} 39. Bxf7 {[%emt 0:01:03]} Re7 {[%emt 0:00:26]} 40. Rf6 {[%emt 0:00:44]} Nd4 {[%emt 0:00:00]} 1-0

[Event "WJCC U20 Open 2019"]
[Site "New Delhi"]
[Date "2019.10.21"]
[Round "7.26"]
[White "Tifferet, Shaked"]
[Black "Bharath Subramaniyam H"]
[Result "0-1"]
[ECO "B41"]
[WhiteElo "2224"]
[BlackElo "2417"]
[Annotator "NA"]
[PlyCount "80"]
[EventDate "2019.10.15"]
[EventType "swiss"]
[EventCountry "IND"]
[SourceTitle "playchess.com"]
[Source "ChessBase"]
[SourceQuality "1"]
[TimeControl "40/5400+30:1800+30"]

1. e4 {[%emt 0:00:00]} c5 {[%emt 0:00:00]} 2. Nf3 {[%emt 0:00:00]} e6 {[%emt 0:01:14]} 3. d4 {[%emt 0:00:00]} cxd4 {[%emt 0:00:08]} 4. Nxd4 {[%emt 0:00:02]} a6 {[%emt 0:00:08]} 5. c4 {[%emt 0:00:07]} Nf6 {[%emt 0:00:09]} 6. Nc3 {[%emt 0:00:08]} Qc7 {[%emt 0:00:36]} 7. Be2 {[%emt 0:00:31]} Bb4 {[%emt 0:02:15]} 8. Nc2 {[%emt 0:00:30]} Be7 {[%emt 0:00:11]} 9. Be3 {[%emt 0:00:22]} d6 {[%emt 0:01:24]} 10. g4 {[%emt 0:00:06]} h6 {[%emt 0:02:35]} 11. h4 {[%emt 0:00:50]} Nc6 {[%emt 0:01:36]} 12. f3 {[%emt 0:03:24]} Bd7 {[%emt 0:08:57]} 13. Qd2 {[%emt 0:02:41]} Ne5 {[%emt 0:02:38]} 14. b3 {[%emt 0:03:52]} b5 {[%emt 0:06:47]} 15. cxb5 {[%emt 0:23:42]} axb5 {[%emt 0:01:42]} 16. Nxb5 {[%emt 0:13:21]} Nxf3+ {[%emt 0:06:31]} 17. Bxf3 {[%emt 0:02:03]} Bxb5 {[%emt 0:00:08]} 18. Nd4 {[%emt 0:05:29]} Ba6 {[%emt 0:05:39]} 19. e5 {[%emt 0:08:18]} Nd5 {[%emt 0:05:44]} 20. Bxd5 {[%emt 0:01:25]} exd5 {[%emt 0:00:07]} 21. e6 {[%emt 0:00:21]} Bf6 {[%emt 0:05:48]} 22. Rc1 {[%emt 0:04:44]} Qe7 {[%emt 0:01:44]} 23. exf7+ {[%emt 0:03:32]} Qxf7 {[%emt 0:03:35]} 24. Nf5 {[%emt 0:03:32]} O-O {[%emt 0:02:13]} 25. Rh3 {[%emt 0:04:26]} Rae8 {[%emt 0:04:48]} 26. Rf3 {[%emt 0:02:11]} d4 {[%emt 0:01:22]} 27. Nxd4 {[%emt 0:00:25]} Qd5 {[%emt 0:03:26]} 28. Kd1 {[%emt 0:15:17]} Rxe3 {[%emt 0:01:48]} 29. Qxe3 {[%emt 0:02:11]} Bxd4 {[%emt 0:00:20]} 30. Rxf8+ {[%emt 0:00:06]} Kxf8 {[%emt 0:00:05]} 31. Qd2 {[%emt 0:00:21]} Qf3+ {[%emt 0:00:49]} 32. Kc2 {[%emt 0:00:07]} Qe4+ {[%emt 0:00:04]} 33. Kd1 {[%emt 0:00:06]} Bd3 {[%emt 0:01:41]} 34. Qe1 {[%emt 0:02:15]} Be3 {[%emt 0:00:38]} 35. Rc8+ {[%emt 0:00:25]} Kf7 {[%emt 0:00:26]} 36. Rc7+ {[%emt 0:00:20]} Kg8 {[%emt 0:00:36]} 37. Rxg7+ {[%emt 0:00:47]} Kxg7 {[%emt 0:00:10]} 38. Qc3+ {[%emt 0:00:05]} Kg6 {[%emt 0:00:31]} 39. h5+ {[%emt 0:00:11]} Kg5 {[%emt 0:00:08]} 40. Qg7+ {[%emt 0:01:15]} Kh4 {[%emt 0:00:07]} 0-1

[Event "WJCC U20 Open 2019"]
[Site "New Delhi"]
[Date "2019.10.21"]
[Round "7.27"]
[White "Hollan, Martin"]
[Black "Saurabh Anand"]
[Result "1/2-1/2"]
[ECO "A13"]
[WhiteElo "2403"]
[BlackElo "2236"]
[Annotator "NA"]
[PlyCount "81"]
[EventDate "2019.10.15"]
[EventType "swiss"]
[EventCountry "IND"]
[SourceTitle "playchess.com"]
[Source "ChessBase"]
[SourceQuality "1"]
[TimeControl "40/5400+30:1800+30"]

1. c4 {[%emt 0:00:00]} e6 {[%emt 0:00:00]} 2. Nf3 {[%emt 0:00:00]} Nf6 {[%emt 0:00:41]} 3. g3 {[%emt 0:00:00]} d5 {[%emt 0:00:15]} 4. Bg2 {[%emt 0:00:00]} dxc4 {[%emt 0:00:39]} 5. Na3 {[%emt 0:00:00]} Bxa3 {[%emt 0:00:21]} 6. bxa3 {[%emt 0:00:06]} Nbd7 {[%emt 0:01:19] A13: English Opening: 1...e6} (6... b5 7. Ne5 Nd5 8. d3 Qf6 9. Bf4 cxd3 10. Nxd3 Nxf4 11. gxf4 c6 12. O-O O-O 13. Qc1 a5 14. Qe3 {0-1 (33) Anton Guijarro,D (2666)-Halkias,S (2571) Riadh 2017}) 7. Bb2 {[%emt 0:01:29]} O-O {[%emt 0:01:46]} 8. Rc1 {[%emt 0:00:05]} c5 {[%emt 0:00:51]} 9. Rxc4 {[%emt 0:01:23]} b5 {[%emt 0:01:01]} 10. Rh4 {[%emt 0:00:27]} Bb7 {[%emt 0:01:10]} 11. Qc2 {[%emt 0:00:23]} Qe7 $146 {[%emt 0:01:20]} ({Predecessor:} 11... h6 $11 {remains equal.} 12. g4 e5 13. Rg1 e4 14. g5 exf3 15. Bxf3 Bxf3 16. gxf6 Nxf6 17. Rxh6 Re8 18. Rxg7+ Kf8 19. Qxc5+ {1-0 (19) Krassowizkij,J (2439)-Baburin,A (2458) Illertissen 2018}) 12. Ne5 {[%emt 0:48:17]} Nxe5 {[%emt 0:13:21]} 13. Bxe5 {[%emt 0:00:09]} Rfb8 {[%emt 0:00:12]} 14. Bxf6 {[%emt 0:12:41]} Qxf6 {[%emt 0:00:18]} 15. Qxh7+ {[%emt 0:00:16]} Kf8 {[%emt 0:00:08]} 16. O-O {[%emt 0:00:21]} Bxg2 {[%emt 0:02:43]} 17. Kxg2 {[%emt 0:00:08]} Rd8 {[%emt 0:07:21]} 18. Rc1 {[%emt 0:04:09]} c4 {[%emt 0:02:26]} 19. Rc3 {[%emt 0:02:41]} g5 {[%emt 0:18:15]} 20. Rh5 {[%emt 0:05:05]} Ke7 {[%emt 0:09:32]} 21. Rf3 {[%emt 0:08:36]} Qg6 {[%emt 0:00:44]} 22. Qxg6 {[%emt 0:00:10]} fxg6 {[%emt 0:00:01]} 23. Rh7+ {[%emt 0:00:53]} Kd6 {[%emt 0:00:10]} 24. Rff7 {[%emt 0:04:15]} a5 {[%emt 0:02:22]} 25. Rc7 {[%emt 0:02:53]} Ra6 {[%emt 0:03:36]} 26. a4 {[%emt 0:01:03]} Rc6 {[%emt 0:01:09]} 27. Rxc6+ {[%emt 0:02:41]} Kxc6 {[%emt 0:00:07]} 28. axb5+ {[%emt 0:00:03]} Kb6 {[%emt 0:01:12]} 29. Re7 {[%emt 0:01:46]} Rxd2 {[%emt 0:00:38]} 30. Rxe6+ {[%emt 0:00:04]} Kxb5 {[%emt 0:00:07]} 31. Re5+ {[%emt 0:03:28]} Kb4 {[%emt 0:01:02]} 32. a3+ {[%emt 0:00:10]} Kxa3 {[%emt 0:01:47]} 33. Rxa5+ {[%emt 0:00:04]} Kb4 {[%emt 0:02:12]} 34. Rxg5 {[%emt 0:02:03]} c3 {[%emt 0:01:13]} 35. Rxg6 {[%emt 0:00:17]} Rd5 {[%emt 0:00:21]} 36. Rg4+ {[%emt 0:01:21]} Kb3 {[%emt 0:00:58]} 37. Rg8 {[%emt 0:00:04]} Rd4 {[%emt 0:01:10]} 38. Rb8+ {[%emt 0:00:44]} Rb4 {[%emt 0:00:09]} 39. Rc8 {[%emt 0:00:06]} Rc4 {[%emt 0:00:09]} 40. Rb8+ {[%emt 0:00:02]} Rb4 {[%emt 0:00:09]} 41. Rc8 {[%emt 0:30:45]} 1/2-1/2